{"text_format":"2","workbook":"xlsx","n_sheets":1,"sheets":["Munka1"],"not_rendered":{"charts":0,"images":0,"macros":0,"external_links":0,"defined_names":0,"comments":0,"pivot_tables":0},"unopened":[],"bounds":{"document_bytes":16777216,"sheet_cells":100000,"run_cost":"one","rows_first":2000,"rows_last":500,"rows_between":2000,"halvings":0,"cell_chars":16384,"cell_head_chars":4096},"cells_cut":0,"cells_raw":0,"read":"whole","date_system":"1900"}

{"sheet":"Munka1","index":0,"n_rows":16,"n_cols":9,"rows_kept":16,"cut":false,"hidden":false,"merged":[[0,1,0,8],[7,1,7,5],[13,1,13,3],[14,1,14,3],[12,1,12,3],[15,1,15,2],[10,2,10,6],[5,2,5,6],[11,5,11,8]]}
[null,"Cég neve:"]
[null,null,"Árpád térre szükséges szőnyeg (db) ","Irinyi épületbe szükséges szőnyeg (db)","Összesen  a két épületbe szükséges szőnyeg (db) ","14 naponta vagy két hetente csere ára/db szőnyeg*","4 hetente vagy havi 1 csere ára / db szőnyeg*","összesen nettó ár/ hó","összesen bruttó ár"]
[null,"85*150",1,3,4,0,"XXXXXXXXXXXXXXX",{"$f":"E3*F3*2","v":0},{"$f":"H3*1.27","v":0}]
[null,"85*150",null,5,5,"XXXXXXXXXXXXXX",0,{"$f":"G4*E4","v":0},{"$f":"H4*1.27","v":0}]
[null,"115*180",4,4,8,0,"XXXXXXXXXXXXXXX",{"$f":"E5*F5*2","v":0},0]
[null,null,"Összesen:",{"$nulls":4},{"$f":"SUM(H3:H5)","v":0},{"$f":"SUM(I3:I5)","v":0}]
[]
[null,"szezonális havi csere 3hó",{"$nulls":5},"összes nettó","összes bruttó"]
[null,"85*150",1,8,9,"XXXXXXXXXXXXXXX",0,{"$f":"G9*E9","v":0},{"$f":"H9*1.27","v":0}]
[null,"115*180",4,4,8,"XXXXXXXXXXXXXXX",0,{"$f":"G10*E10","v":0},{"$f":"H10*1.27","v":0}]
[null,null,"Összesen:",{"$nulls":4},{"$f":"SUM(H9:H10)","v":0},{"$f":"SUM(I9:I10)","v":0}]
[{"$nulls":5},"* Kérjük a sárga részen a termékhez tartozó árat beírni"]
[null,"Éves összesítés: "]
[null,"9 hónapra a havi szőnyegbérlések árai",null,null,{"$f":"(9*H6)","v":0},"(nettó)",{"$f":"9*I6","v":0},"(bruttó)"]
[null,"Szezonálisan a havi szőnyegbérlések (3 hónapra)",null,null,{"$f":"(3*H11)","v":0},"(nettó)",{"$f":"3*I11","v":0},"(bruttó)"]
[null,"Végösszesen",null,null,{"$f":"SUM(E14:E15)","v":0},"(nettó)",{"$f":"SUM(G14:G15)","v":0},"(bruttó)"]